fUST/lending_fUST_20250907
["ID","MTS","AMOUNT","RATE_DAILY","PERIOD"]
[383966080,1757218232472,-151.0,0.0001369,2]
[383966082,1757218232481,-151.0,0.0001369,2]
[383966084,1757218232491,-158.87133069,0.0001369,2]
[383966086,1757218232499,-151.0,0.0001369,2]
[383966088,1757218232508,-151.0,0.0001369,2]
[383966090,1757218232517,-151.0,0.0001369,2]
[383966092,1757218232527,-151.0,0.0001369,2]
[383966094,1757218232536,-151.0,0.0001369,2]
[383966096,1757218232545,-151.0,0.0001369,2]
[383966098,1757218232555,-151.0,0.0001369,2]
[383966100,1757218232568,-151.0,0.0001369,2]
[383966101,1757218232577,-151.0,0.0001369,2]
[383966103,1757218232586,-187.78006525,0.0001369,2]
[383966105,1757218232596,-151.0,0.0001369,2]
[383966106,1757218232605,-162.60918123,0.0001369,2]
[383966108,1757218232615,-35265.9282468,0.0001369,2]
[383966111,1757218232626,-45841.73986397,0.0001369,2]
[383966114,1757218238123,-214.8335072,0.00013598,2]
[383966115,1757218238133,-214.8335072,0.00013667,2]
[383966116,1757218238142,-8605.712984,0.0001369,2]
[383966117,1757218238153,-41590.03280641,0.0001369,2]
[383966118,1757218238178,-1072.02397009,0.0001369,2]
[383966119,1757218238192,-683.88842277,0.0001369,2]
[383966120,1757218238204,-1058.23592004,0.0001369,2]
[383966121,1757218238215,-1236.95149689,0.0001369,2]
[383966160,1757218240281,-214.8335072,0.0001353,2]
[383966162,1757218240294,-12131.9338782,0.0001369,2]
[383966165,1757218240367,-14692.84589729,0.0001369,2]
[383966166,1757218240385,-8164.7462704,0.0001369,2]
[383966167,1757218240403,-11201.19145181,0.0001369,2]
[383969134,1757218459471,168.332,0.00013156,2]
[383969137,1757218481921,168.332,0.00013156,2]
[383969146,1757218505056,168.332,0.00013156,2]
[383969152,1757218528157,168.332,0.00013156,2]
[383969157,1757218552250,168.332,0.00013156,2]
[383969162,1757218574447,168.332,0.00013156,2]
[383969167,1757218597809,168.332,0.00013156,2]
[383969171,1757218621252,168.332,0.00013156,2]
[383969176,1757218637049,168.332,0.00013156,2]
[383969215,1757218860193,731.37879052,0.00013061,2]
[383969223,1757218883054,731.37879052,0.00013061,2]
[383969229,1757218905664,731.37879052,0.00013061,2]
[383969232,1757218929413,731.37879052,0.00013061,2]
[383969238,1757218952566,731.37879052,0.00013061,2]
[383969242,1757218975169,731.37879052,0.00013061,2]
[383969250,1757218997891,731.37879052,0.00013061,2]
[383969257,1757219020498,731.37879052,0.00013061,2]
[383969260,1757219028820,731.37879052,0.00013061,2]
[383969297,1757219242493,733.23654948,0.00013163,2]
[383969299,1757219250949,733.23654948,0.00013163,2]
[383969317,1757219327143,33914.35520277,0.00014444,4]
[383969318,1757219329142,158.84,0.00012329,2]
[383969320,1757219339810,794.24,0.00012329,2]
[383969321,1757219350216,361.02,0.00012329,2]
[383969322,1757219360645,551.56,0.00012329,2]
[383969326,1757219381289,208.92,0.00012329,2]
[383969330,1757219401927,174.1,0.00012329,2]
[383969345,1757219412330,870.53,0.00012329,2]
[383969713,1757219438421,-733.23654948,0.00013296,2]
[383969715,1757219438430,-164.99573472,0.0001343,2]
[383969718,1757219438441,-568.24081476,0.0001343,2]
[383969720,1757219438451,-300.0,0.00013499,2]
[383969722,1757219438460,-300.0,0.00013499,2]
[383969724,1757219438470,-1200.0,0.00013499,2]
[383969726,1757219438480,-779.35918524,0.000135,2]
[383969728,1757219438492,-2108.39254201,0.000135,2]
[383969738,1757219440611,-17321.12837977,0.000135,2]
[383969739,1757219440621,-733.23654948,0.00013566,2]
[383969740,1757219440631,-161.1251304,0.00013598,2]
[383969741,1757219440641,-1904.6440924,0.00013598,2]
[383969742,1757219440650,-344.52018119,0.00013686,2]
[383969743,1757219440660,-161.1251304,0.00013689,2]
[383969744,1757219440669,-12429.02412917,0.0001369,2]
[383969745,1757219440726,-2420.60077858,0.0001369,2]
[383969857,1757219443647,-647.68,0.0001369,2]
[383969859,1757219443658,-1083.345752,0.0001369,2]
[383969862,1757219443669,-32230.09073894,0.0001369,2]
[383970171,1757219446598,-8306.49935665,0.0001369,2]
[383970174,1757219446609,-707.121888,0.0001369,2]
[383971944,1757219479292,20185.2127718,0.00012697,2]
[383971975,1757219644706,578.0,0.00027397,120]
[383971982,1757219661914,947.0,0.00013153,2]
[383971988,1757219684593,947.0,0.00013153,2]
[383971993,1757219706963,947.0,0.00013153,2]
[383971997,1757219730667,947.0,0.00013153,2]
[383972000,1757219753651,947.0,0.00013153,2]
[383972002,1757219775583,1371.6825504,0.00012694,2]
[383972003,1757219776851,947.0,0.00013153,2]
[383972006,1757219799968,947.0,0.00013153,2]
[383972011,1757219823238,947.0,0.00013153,2]
[383972014,1757219832148,947.0,0.00013153,2]
[383972017,1757219840218,1000.0,0.00012692,2]
[383972053,1757220059404,786.53374191,0.00013057,2]
[383972058,1757220082933,786.53374191,0.00013057,2]
[383972062,1757220106125,786.53374191,0.00013057,2]
[383972063,1757220108381,378.66,0.00012329,2]
[383972065,1757220118769,465.29,0.00012329,2]
[383972067,1757220131145,786.53374191,0.00013057,2]
[383972070,1757220139622,173.93,0.00012329,2]
[383972074,1757220155257,173.93,0.00012329,2]
[383972075,1757220155332,786.53374191,0.00013057,2]
[383972077,1757220166987,251.19,0.00012329,2]
[383972079,1757220177686,786.53374191,0.00013057,2]
[383972080,1757220177875,361.81,0.00012329,2]
[383972081,1757220188342,301.51,0.00012329,2]
[383972082,1757220198741,321.93,0.00012329,2]
[383972083,1757220201723,786.53374191,0.00013057,2]
[383972088,1757220209182,394.83,0.00012329,2]
[383972091,1757220219600,384.44,0.00012329,2]
[383972092,1757220225463,786.53374191,0.00013057,2]
[383972096,1757220230061,320.37,0.00012329,2]
[383972097,1757220240991,395.97,0.00012329,2]
[383972098,1757220241944,786.53374191,0.00013057,2]
[383972100,1757220251401,378.83,0.00012329,2]
[383972104,1757220262058,315.7,0.00012329,2]
[383972106,1757220272493,337.73,0.00012329,2]
[383972109,1757220282876,281.44,0.00012329,2]
[383972110,1757220293284,262.81,0.00012329,2]
[383972112,1757220303681,360.4,0.00012329,2]
[383972115,1757220314097,300.33,0.00012329,2]
[383972119,1757220324482,250.28,0.00012329,2]
[383972123,1757220335008,208.56,0.00012329,2]
[383972124,1757220345839,173.8,0.00012329,2]
[383972129,1757220356664,173.8,0.00012329,2]
[383972130,1757220367098,695.24,0.00012329,2]
[383972153,1757220453428,947.65887231,0.00013091,2]
[383972163,1757220497603,149065.94597215,0.00013,2]
[383972184,1757220632801,-161.1251304,0.00013223,2]
[383972185,1757220632911,-161.1251304,0.00013357,2]
[383972186,1757220632922,-161.1251304,0.00013489,2]
[383972187,1757220632932,-786.53374191,0.0001349,2]
[383972188,1757220632941,-2981.6850943,0.00013498,2]
[383972189,1757220632951,-300.0,0.00013588,2]
[383972191,1757220632961,-1200.0,0.00013588,2]
[383972193,1757220632970,-500.0,0.00013588,2]
[383972195,1757220632979,-294.88148104,0.00013588,2]
[383972197,1757220632989,-500.0,0.00013588,2]
[383972199,1757220633003,-312.77237701,0.00013588,2]
[383972201,1757220633012,-500.0,0.00013588,2]
[383972203,1757220633022,-500.0,0.00013588,2]
[383972205,1757220633032,-500.0,0.00013588,2]
[383972207,1757220633042,-500.0,0.00013588,2]
[383972208,1757220633051,-500.0,0.00013588,2]
[383972209,1757220633060,-500.0,0.00013588,2]
[383972210,1757220633070,-500.0,0.00013588,2]
[383972212,1757220633080,-500.0,0.00013588,2]
[383972214,1757220633090,-459.44379037,0.00013588,2]
[383972215,1757220633099,-500.0,0.00013588,2]
[383972217,1757220633108,-500.0,0.00013588,2]
[383972219,1757220633118,-500.0,0.00013588,2]
[383972222,1757220633129,-500.0,0.00013588,2]
[383972224,1757220633138,-500.0,0.00013588,2]
[383972226,1757220633147,-500.0,0.00013588,2]
[383972228,1757220633156,-500.0,0.00013588,2]
[383972230,1757220633166,-500.0,0.00013588,2]
[383972231,1757220633175,-500.0,0.00013588,2]
[383972233,1757220633185,-500.0,0.00013588,2]
[383972236,1757220633194,-500.0,0.00013588,2]
[383972238,1757220633203,-281.46274837,0.00013588,2]
[383972239,1757220633213,-500.0,0.00013588,2]
[383972242,1757220633223,-500.0,0.00013588,2]
[383972244,1757220633232,-500.0,0.00013588,2]
[383972246,1757220633242,-500.0,0.00013588,2]
[383972248,1757220633252,-1200.0,0.00013589,2]
[383972250,1757220633262,-151.0,0.00013589,2]
[383972252,1757220633271,-151.0,0.00013589,2]
[383972254,1757220633281,-151.0,0.00013589,2]
[383972256,1757220633290,-151.0,0.00013589,2]
[383972258,1757220633300,-151.0,0.00013589,2]
[383972260,1757220633309,-151.0,0.00013589,2]
[383972262,1757220633318,-151.0,0.00013589,2]
[383972264,1757220633328,-151.0,0.00013589,2]
[383972266,1757220633338,-151.0,0.00013589,2]
[383972268,1757220633347,-151.0,0.00013589,2]
[383972270,1757220633356,-188.290614,0.00013589,2]
[383972272,1757220633366,-188.290614,0.00013589,2]
[383972274,1757220633375,-188.290614,0.00013589,2]
[383972276,1757220633385,-188.290614,0.00013589,2]
[383972278,1757220633395,-188.290614,0.00013589,2]
[383972280,1757220633404,-188.290614,0.00013589,2]
[383972282,1757220633413,-188.290614,0.00013589,2]
[383972284,1757220633424,-188.290614,0.00013589,2]
[383972286,1757220633433,-188.290614,0.00013589,2]
[383972288,1757220633444,-151.0,0.0001359,2]
[383972291,1757220633454,-151.0,0.0001359,2]
[383972293,1757220633463,-151.0,0.0001359,2]
[383972295,1757220633473,-154.860388,0.0001359,2]
[383972296,1757220633483,-176.115669,0.0001359,2]
[383972299,1757220633493,-216.10322,0.0001359,2]
[383972301,1757220633504,-151.0,0.0001359,2]
[383972302,1757220633513,-151.0,0.0001359,2]
[383972304,1757220633523,-151.0,0.0001359,2]
[383972307,1757220633533,-151.0,0.0001359,2]
[383972309,1757220633544,-188.290614,0.0001359,2]
[383972311,1757220633554,-188.290614,0.0001359,2]
[383972313,1757220633563,-44000.91672017,0.0001359,2]
[383972315,1757220633573,-160.538306,0.00013591,2]
[383972317,1757220633583,-151.0,0.00013591,2]
[383972319,1757220633593,-174.265536,0.00013591,2]
[383972321,1757220633603,-151.0,0.00013591,2]
[383972323,1757220633612,-151.0,0.00013591,2]
[383972325,1757220633622,-165.297363,0.00013591,2]
[383972327,1757220633631,-151.0,0.00013591,2]
[383972329,1757220633642,-151.0,0.00013591,2]
[383972331,1757220633651,-151.0,0.00013591,2]
[383972333,1757220633661,-151.0,0.00013591,2]
[383972335,1757220633671,-151.0,0.00013591,2]
[383972337,1757220633681,-151.0,0.00013591,2]
[383972339,1757220633690,-151.0,0.00013591,2]
[383972341,1757220633699,-245.18288,0.00013591,2]
[383972343,1757220633708,-154.660717,0.00013592,2]
[383972345,1757220633717,-158.448269,0.00013592,2]
[383972347,1757220633726,-157.64659755,0.00013592,2]
[383972349,1757220633735,-157.84327896,0.00013592,2]
[383972350,1757220633745,-157.68794325,0.00013592,2]
[383972352,1757220633755,-500.0,0.00013592,2]
[383972355,1757220633766,-176.27117935,0.00013592,2]
[383972357,1757220633776,-157.0,0.00013592,2]
[383972358,1757220633785,-164.00886891,0.00013592,2]
[383972361,1757220633795,-157.0,0.00013592,2]
[383972363,1757220633805,-157.0,0.00013592,2]
[383972364,1757220633815,-157.0,0.00013592,2]
[383972366,1757220633824,-157.0,0.00013592,2]
[383972368,1757220633834,-677.0,0.00013592,2]
[383972370,1757220633844,-153.202274,0.00013593,2]
[383972372,1757220633853,-151.0,0.00013593,2]
[383972374,1757220633863,-152.288766,0.00013593,2]
[383972376,1757220633873,-151.0,0.00013593,2]
[383972378,1757220633883,-151.0,0.00013593,2]
[383972381,1757220633893,-157.0,0.00013593,2]
[383972383,1757220633903,-157.0,0.00013593,2]
[383972385,1757220633913,-500.0,0.00013594,2]
[383972387,1757220633922,-156.320432,0.00013594,2]
[383972389,1757220633932,-151.0,0.00013594,2]
[383972390,1757220633941,-151.0,0.00013594,2]
[383972393,1757220633951,-188.978242,0.00013594,2]
[383972395,1757220633961,-500.0,0.00013594,2]
[383972397,1757220633970,-280.01846798,0.00013594,2]
[383972399,1757220633980,-180860.95744627,0.00013595,2]
[383972401,1757220633990,-161.1251304,0.00013598,2]
[383972403,1757220634004,-500.0,0.00013673,2]
[383972404,1757220634013,-500.39295304,0.00013673,2]
[383972407,1757220634023,-500.0,0.00013673,2]
[383972409,1757220634033,-398.61159821,0.00013673,2]
[383972411,1757220634043,-500.97835294,0.00013673,2]
[383972413,1757220634052,-500.0,0.00013673,2]
[383972415,1757220634061,-501.45101962,0.00013673,2]
[383972417,1757220634070,-500.0,0.00013673,2]
[383972419,1757220634080,-294.34783803,0.00013673,2]
[383972421,1757220634090,-501.21089453,0.00013673,2]
[383972423,1757220634100,-500.0,0.00013673,2]
[383972425,1757220634109,-500.0,0.00013673,2]
[383972427,1757220634119,-500.0,0.00013673,2]
[383972429,1757220634129,-160.00400584,0.00013673,2]
[383972430,1757220634138,-500.0,0.00013673,2]
[383972431,1757220634148,-500.0,0.00013673,2]
[383972432,1757220634157,-500.0,0.00013673,2]
[383972433,1757220634167,-500.0,0.00013673,2]
[383972434,1757220634176,-361.90771801,0.00013673,2]
[383972435,1757220634186,-501.89804871,0.00013673,2]
[383972436,1757220634195,-500.91828264,0.00013673,2]
[383972437,1757220634205,-500.0,0.00013673,2]
[383972438,1757220634215,-500.0,0.00013673,2]
[383972439,1757220634224,-500.0,0.00013673,2]
[383972440,1757220634233,-37017.47596992,0.0001369,2]
[383972500,1757220638583,-5874.10478914,0.00013452,2]
[383972501,1757220638599,-500.0,0.00013588,2]
[383972502,1757220638615,-500.0,0.00013588,2]
[383972503,1757220638630,-500.0,0.00013588,2]
[383972504,1757220638644,-500.0,0.00013588,2]
[383972505,1757220638658,-500.0,0.00013588,2]
[383972506,1757220638673,-500.0,0.00013588,2]
[383972507,1757220638686,-500.0,0.00013588,2]
[383972508,1757220638700,-500.0,0.00013588,2]
[383972509,1757220638713,-500.0,0.00013588,2]
[383972510,1757220638728,-500.0,0.00013588,2]
[383972511,1757220638743,-500.0,0.00013588,2]
[383972512,1757220638759,-500.0,0.00013588,2]
[383972513,1757220638774,-500.0,0.00013588,2]
[383972514,1757220638786,-500.0,0.00013588,2]
[383972515,1757220638799,-500.0,0.00013588,2]
[383972516,1757220638817,-500.0,0.00013588,2]
[383972517,1757220638830,-500.0,0.00013588,2]
[383972518,1757220638844,-500.0,0.00013588,2]
[383972521,1757220638858,-500.0,0.00013588,2]
[383972523,1757220638869,-500.0,0.00013588,2]
[383972525,1757220638881,-500.0,0.00013588,2]
[383972528,1757220638896,-500.0,0.00013588,2]
[383972530,1757220638909,-500.0,0.00013588,2]
[383972533,1757220638922,-500.0,0.00013588,2]
[383972535,1757220638935,-500.0,0.00013588,2]
[383972538,1757220638949,-500.0,0.00013588,2]
[383972540,1757220638963,-500.0,0.00013588,2]
[383972543,1757220638976,-500.0,0.00013588,2]
[383972545,1757220638988,-500.0,0.00013588,2]
[383972547,1757220639003,-500.0,0.00013588,2]
[383972550,1757220639016,-500.0,0.00013588,2]
[383972552,1757220639028,-500.0,0.00013588,2]
[383972554,1757220639041,-500.0,0.00013588,2]
[383972557,1757220639054,-500.0,0.00013588,2]
[383972559,1757220639067,-500.0,0.00013588,2]
[383972561,1757220639079,-500.0,0.00013588,2]
[383972564,1757220639093,-500.0,0.00013588,2]
[383972566,1757220639106,-500.0,0.00013588,2]
[383972568,1757220639119,-500.0,0.00013588,2]
[383972571,1757220639131,-500.0,0.00013588,2]
[383972573,1757220639143,-500.0,0.00013588,2]
[383972576,1757220639157,-500.0,0.00013588,2]
[383972578,1757220639170,-500.0,0.00013588,2]
[383972580,1757220639183,-500.0,0.00013588,2]
[383972583,1757220639196,-500.0,0.00013588,2]
[383972585,1757220639209,-500.0,0.00013588,2]
[383972587,1757220639221,-500.0,0.00013588,2]
[383972589,1757220639233,-500.0,0.00013588,2]
[383972592,1757220639246,-500.0,0.00013588,2]
[383972594,1757220639259,-500.0,0.00013588,2]
[383972597,1757220639271,-500.0,0.00013588,2]
[383972599,1757220639284,-500.0,0.00013588,2]
[383972601,1757220639296,-500.0,0.00013588,2]
[383972604,1757220639309,-500.0,0.00013588,2]
[383972606,1757220639321,-500.0,0.00013588,2]
[383972608,1757220639333,-500.0,0.00013588,2]
[383972611,1757220639346,-500.0,0.00013588,2]
[383972613,1757220639359,-500.0,0.00013588,2]
[383972616,1757220639371,-500.0,0.00013588,2]
[383972618,1757220639384,-500.0,0.00013588,2]
[383972620,1757220639397,-500.0,0.00013588,2]
[383972622,1757220639409,-500.0,0.00013588,2]
[383972624,1757220639418,-500.0,0.00013588,2]
[383972627,1757220639429,-500.0,0.00013588,2]
[383972628,1757220639438,-500.0,0.00013588,2]
[383972631,1757220639448,-500.0,0.00013588,2]
[383972633,1757220639458,-188.290614,0.00013589,2]
[383972635,1757220639468,-188.290614,0.00013589,2]
[383972637,1757220639478,-188.290614,0.00013589,2]
[383972639,1757220639487,-188.290614,0.00013589,2]
[383972657,1757220639658,-188.290614,0.00013589,2]
[383972661,1757220639680,-188.290614,0.00013589,2]
[383972663,1757220639691,-188.290614,0.00013589,2]
[383972665,1757220639701,-188.290614,0.0001359,2]
[383972667,1757220639711,-188.290614,0.0001359,2]
[383972669,1757220639720,-171029.69403118,0.0001369,2]
[383972674,1757220639757,-31943.91545079,0.0001369,2]
[383972676,1757220639769,-6651.36677426,0.0001369,2]
[383972678,1757220639780,-3123.11078108,0.0001369,2]
[383972680,1757220639791,-12438.33355697,0.0001369,2]
[383972682,1757220639802,-885.96677516,0.0001369,2]
[383972685,1757220639813,-3157.4254304,0.0001369,2]
[383972687,1757220639825,-3430.85880594,0.0001369,2]
[383972691,1757220639852,-35513.00605729,0.0001369,2]
[383972693,1757220639862,-161.675704,0.00013693,2]
[383972695,1757220639872,-500.0,0.00013693,2]
[383972697,1757220639882,-168.332,0.00013696,2]
[383972699,1757220639891,-839.07022409,0.00013698,2]
[383972701,1757220639900,-500.0,0.00013698,2]
[383972703,1757220639909,-480.0,0.00013698,2]
[383972705,1757220639919,-480.0,0.00013698,2]
[383972707,1757220639928,-480.0,0.00013698,2]
[383972709,1757220639937,-480.0,0.00013698,2]
[383972711,1757220639947,-611.26877476,0.00013698,2]
[383972713,1757220639957,-575.51,0.00013698,2]
[383972715,1757220639967,-480.0,0.00013698,2]
[383972717,1757220639976,-219.69603656,0.00013698,2]
[383972719,1757220639986,-101.47400971,0.00013698,2]
[383972721,1757220640003,-728.82599029,0.00013698,2]
[383972723,1757220640012,-481.6328322,0.00013698,2]
[383972725,1757220640023,-480.0,0.00013698,2]
[383972727,1757220640032,-480.0,0.00013698,2]
[383972729,1757220640042,-481.79918865,0.00013698,2]
[383972731,1757220640052,-480.0,0.00013698,2]
[383972733,1757220640061,-480.0,0.00013698,2]
[383972736,1757220640071,-482.95387656,0.00013698,2]
[383972738,1757220640080,-480.0,0.00013698,2]
[383972739,1757220640090,-322.43567322,0.00013698,2]
[383972741,1757220640099,-480.0,0.00013698,2]
[383972743,1757220640108,-480.0,0.00013698,2]
[383972745,1757220640118,-480.0,0.00013698,2]
[383972747,1757220640127,-480.0,0.00013698,2]
[383972749,1757220640136,-480.0,0.00013698,2]
[383972751,1757220640145,-480.0,0.00013698,2]
[383972753,1757220640154,-85.17858102,0.00013698,2]
[383972925,1757220641610,-394.82141898,0.00013698,2]
[383972927,1757220641620,-480.0,0.00013698,2]
[383972929,1757220641630,-480.0,0.00013698,2]
[383972931,1757220641639,-350.33332855,0.00013698,2]
[383972933,1757220641649,-480.0,0.00013698,2]
[383972935,1757220641659,-483.59815373,0.00013698,2]
[383972937,1757220641668,-480.0,0.00013698,2]
[383972939,1757220641678,-480.0,0.00013698,2]
[383972941,1757220641687,-480.0,0.00013698,2]
[383972943,1757220641697,-480.0,0.00013698,2]
[383972945,1757220641707,-480.0,0.00013698,2]
[383972946,1757220641716,-483.59119254,0.00013698,2]
[383972949,1757220641727,-481.9284001,0.00013698,2]
[383972950,1757220641736,-480.0,0.00013698,2]
[383972952,1757220641746,-481.56125011,0.00013698,2]
[383972954,1757220641755,-480.0,0.00013698,2]
[383972956,1757220641765,-1003.82966061,0.00013698,2]
[383972958,1757220641774,-445.64096294,0.00013698,2]
[383972960,1757220641784,-480.0,0.00013698,2]
[383972962,1757220641794,-481.41037125,0.00013698,2]
[383972964,1757220641804,-480.0,0.00013698,2]
[383972966,1757220641813,-480.85873164,0.00013698,2]
[383972968,1757220641823,-480.0,0.00013698,2]
[383972970,1757220641832,-480.0,0.00013698,2]
[383972972,1757220641842,-756.44,0.00013698,2]
[383972974,1757220641851,-480.0,0.00013698,2]
[383972976,1757220641860,-480.0,0.00013698,2]
[383972977,1757220641870,-480.0,0.00013698,2]
[383972979,1757220641879,-480.0,0.00013698,2]
[383972982,1757220641889,-480.0,0.00013698,2]
[383972984,1757220641899,-480.0,0.00013698,2]
[383972995,1757220642004,-480.0,0.00013698,2]
[383972997,1757220642014,-480.0,0.00013698,2]
[383972999,1757220642024,-480.0,0.00013698,2]
[383973001,1757220642033,-480.0,0.00013698,2]
[383973003,1757220642043,-480.0,0.00013698,2]
[383973005,1757220642052,-480.0,0.00013698,2]
[383973007,1757220642061,-259.55646409,0.00013698,2]
[383973009,1757220642071,-551.21201223,0.00013698,2]
[383973011,1757220642080,-480.0,0.00013698,2]
[383973012,1757220642090,-482.52303627,0.00013698,2]
[383973015,1757220642100,-480.0,0.00013698,2]
[383973016,1757220642110,-480.0,0.00013698,2]
[383973018,1757220642119,-480.0,0.00013698,2]
[383973020,1757220642129,-480.0,0.00013698,2]
[383973022,1757220642139,-480.0,0.00013698,2]
[383973025,1757220642148,-484.99408432,0.00013698,2]
[383973026,1757220642158,-480.0,0.00013698,2]
[383973028,1757220642168,-480.0,0.00013698,2]
[383973030,1757220642177,-753.13,0.00013698,2]
[383973032,1757220642187,-480.0,0.00013698,2]
[383973035,1757220642196,-480.0,0.00013698,2]
[383973036,1757220642205,-480.0,0.00013698,2]
[383973038,1757220642215,-480.0,0.00013698,2]
[383973040,1757220642224,-480.0,0.00013698,2]
[383973042,1757220642233,-480.0,0.00013698,2]
[383973044,1757220642242,-480.0,0.00013698,2]
[383973046,1757220642252,-480.0,0.00013698,2]
[383973048,1757220642261,-480.0,0.00013698,2]
[383973050,1757220642271,-480.0,0.00013698,2]
[383973052,1757220642281,-489.31395035,0.00013698,2]
[383973054,1757220642290,-480.0,0.00013698,2]
[383973056,1757220642300,-433.10443132,0.00013698,2]
[383973058,1757220642309,-480.0,0.00013698,2]
[383973060,1757220642319,-480.0,0.00013698,2]
[383973062,1757220642328,-480.0,0.00013698,2]
[383973064,1757220642338,-2791.33,0.00013698,2]
[383973066,1757220642350,-480.0,0.00013698,2]
[383973068,1757220642359,-480.0,0.00013698,2]
[383973070,1757220642369,-480.0,0.00013698,2]
[383973072,1757220642378,-238.52510536,0.00013698,2]
[383976927,1757220696451,333.16,0.00012329,2]
[383976928,1757220717096,383.05,0.00012329,2]
[383976938,1757220743975,554.69,0.00012329,2]
[383976939,1757220754634,847.44,0.00012329,2]
[383976944,1757220785349,811.41,0.00012329,2]
[383976947,1757220805960,340.56,0.00012329,2]
[383976953,1757220816400,154.8,0.00012329,2]
[383976960,1757220837037,619.24,0.00012329,2]
[383976972,1757220866955,866.08465931,0.00013052,2]
[383976975,1757220880285,19185.6994527,0.00012691,2]
[383976981,1757220890915,480.0,0.00013052,2]
[383976985,1757220908637,175.21,0.00012329,2]
[383976988,1757220914142,480.0,0.00013052,2]
[383976990,1757220919059,876.08,0.00012329,2]
[383976992,1757220937887,480.0,0.00013052,2]
[383976994,1757220958017,3445.8123016,0.00012672,2]
[383976996,1757220960925,866.08465931,0.00013052,2]
[383977004,1757220983660,573.91534069,0.00013052,2]
[383977011,1757221007790,480.0,0.00013052,2]
[383977016,1757221030579,480.0,0.00013052,2]
[383977017,1757221033009,3049.999999,0.00029027,120]
[383977022,1757221047176,866.08465931,0.00013052,2]
[383977075,1757221457317,250.0,0.00013139,2]
[383977080,1757221481022,250.0,0.00013139,2]
[383977081,1757221503487,250.0,0.00013139,2]
[383977085,1757221526109,250.0,0.00013139,2]
[383977088,1757221544114,207.0,0.0002,120]
[383977090,1757221549464,250.0,0.00013139,2]
[383977093,1757221573983,250.0,0.00013139,2]
[383977095,1757221596909,250.0,0.00013139,2]
[383977117,1757221620827,250.0,0.00013139,2]
[383977119,1757221627212,250.0,0.00013133,2]
[383977121,1757221629689,250.0,0.00013139,2]
[383977160,1757221831823,-168.0,0.00013238,2]
[383977161,1757221831833,-131.89513095,0.00013311,2]
[383977162,1757221831882,-368.10486905,0.00013311,2]
[383977163,1757221831891,-531.67306221,0.00013445,2]
[383977164,1757221831901,-168.0,0.00013578,2]
[383977165,1757221831911,-531.67306221,0.00013581,2]
[383977166,1757221831920,-258.64889508,0.00013598,2]
[383977167,1757221831930,-1987.79006286,0.00013598,2]
[383977168,1757221831939,-300.0,0.0001367,2]
[383977169,1757221831949,-1200.0,0.0001367,2]
[383977170,1757221831959,-947.0,0.00013671,2]
[383977171,1757221831969,-300.0,0.00013671,2]
[383977172,1757221831978,-300.0,0.00013671,2]
[383977173,1757221831987,-5685.80580284,0.00013672,2]
[383977174,1757221831997,-500.87021571,0.00013673,2]